[Event "*** Titled Tuesday Blitz"]
[Site "Chess.com"]
[Date "2021.03.16"]
[Round "2"]
[White "RobertoJBM"]
[Black "MrChampion_Coach"]
[Result "1-0"]
[WhiteElo "2760"]
[BlackElo "2498"]
[TimeControl "180+1"]
[EndTime "10:17:48 PDT"]
[Termination "RobertoJBM won by resignation"]

1. d4 {[%clk 0:03:00.9]} 1... Nf6 {[%clk 0:02:58.9]} 2. Nf3 {[%clk 0:03:00.5]}
2... e6 {[%clk 0:02:58.4]} 3. e3 {[%clk 0:03:00.4]} 3... b6 {[%clk 0:02:53.1]}
4. Bd3 {[%clk 0:03:00.4]} 4... Bb7 {[%clk 0:02:48.8]} 5. Qe2 {[%clk 0:03:00.9]}
5... d5 {[%clk 0:02:46.9]} 6. Nbd2 {[%clk 0:02:59.1]} 6... Nbd7 {[%clk
0:02:41.5]} 7. e4 {[%clk 0:02:58.7]} 7... dxe4 {[%clk 0:02:33.5]} 8. Nxe4 {[%clk
0:02:59.6]} 8... Be7 {[%clk 0:02:29.3]} 9. O-O {[%clk 0:02:59.2]} 9... O-O
{[%clk 0:02:29]} 10. Rd1 {[%clk 0:02:59.1]} 10... Nxe4 {[%clk 0:02:24.4]} 11.
Bxe4 {[%clk 0:02:58.8]} 11... Bxe4 {[%clk 0:02:24.4]} 12. Qxe4 {[%clk
0:02:59.7]} 12... Nf6 {[%clk 0:02:24.4]} 13. Qc6 {[%clk 0:02:59.7]} 13... Qd6
{[%clk 0:02:24]} 14. Ne5 {[%clk 0:02:59.3]} 14... Rad8 {[%clk 0:02:00.5]} 15.
Bf4 {[%clk 0:02:55.1]} 15... Nd5 {[%clk 0:01:53.3]} 16. Bg3 {[%clk 0:02:35.8]}
16... Nb4 {[%clk 0:01:36.1]} 17. Qc4 {[%clk 0:02:24.8]} 17... Qd5 {[%clk
0:01:25.1]} 18. c3 {[%clk 0:02:23.2]} 18... Qxc4 {[%clk 0:01:23.5]} 19. Nxc4
{[%clk 0:02:24.1]} 19... Nd5 {[%clk 0:01:23.8]} 20. a4 {[%clk 0:02:21.9]} 20...
a5 {[%clk 0:01:23]} 21. Ne3 {[%clk 0:02:18.8]} 21... Rd7 {[%clk 0:01:16.6]} 22.
Nxd5 {[%clk 0:02:18.1]} 22... exd5 {[%clk 0:01:17.5]} 23. Re1 {[%clk 0:02:17.8]}
23... Bf6 {[%clk 0:01:10.4]} 24. Re2 {[%clk 0:02:17.9]} 24... c5 {[%clk
0:01:06.3]} 25. dxc5 {[%clk 0:02:10.2]} 25... bxc5 {[%clk 0:01:07.2]} 26. Rd2
{[%clk 0:02:09.1]} 26... Rfd8 {[%clk 0:01:06.2]} 27. Rad1 {[%clk 0:02:07.2]}
27... g6 {[%clk 0:01:06.5]} 28. Kf1 {[%clk 0:02:06.9]} 28... Kg7 {[%clk
0:01:03.1]} 29. Ke2 {[%clk 0:02:06.6]} 29... Re8+ {[%clk 0:01:02.9]} 30. Kd3
{[%clk 0:02:06]} 30... Rb7 {[%clk 0:01:00]} 31. Kc2 {[%clk 0:02:04.7]} 31... d4
{[%clk 0:01:00.4]} 32. Bd6 {[%clk 0:01:46.7]} 32... Rxb2+ {[%clk 0:00:56.1]} 33.
Kxb2 {[%clk 0:01:45.5]} 33... dxc3+ {[%clk 0:00:56.4]} 34. Kc2 {[%clk
0:01:45.3]} 34... cxd2 {[%clk 0:00:56.8]} 35. Rxd2 {[%clk 0:01:40.6]} 35... c4
{[%clk 0:00:56.8]} 36. Bc7 {[%clk 0:01:20.7]} 36... c3 {[%clk 0:00:44.3]} 37.
Rd3 {[%clk 0:01:16]} 37... Re2+ {[%clk 0:00:42.2]} 38. Kc1 {[%clk 0:01:16.5]}
38... Rxf2 {[%clk 0:00:38.6]} 39. Rg3 {[%clk 0:01:13.6]} 39... h6 {[%clk
0:00:29.3]} 40. Bb6 {[%clk 0:01:01.4]} 40... Re2 {[%clk 0:00:22.3]} 41. Bxa5
{[%clk 0:00:51.5]} 41... Bg5+ {[%clk 0:00:21]} 42. Rxg5 {[%clk 0:00:50.7]} 42...
hxg5 {[%clk 0:00:21]} 43. Bxc3+ {[%clk 0:00:51.6]} 43... f6 {[%clk 0:00:21.8]}
44. a5 {[%clk 0:00:51.7]} 44... Rxg2 {[%clk 0:00:21.9]} 45. Kb1 {[%clk 0:00:49]}
45... Rxh2 {[%clk 0:00:20.9]} 46. a6 {[%clk 0:00:49.4]} 46... Rh8 {[%clk
0:00:20.7]} 47. a7 {[%clk 0:00:49.3]} 47... Kf7 {[%clk 0:00:18.9]} 48. Kc2
{[%clk 0:00:48.5]} 48... Rc8 {[%clk 0:00:18.6]} 49. Kd3 {[%clk 0:00:48.2]} 49...
f5 {[%clk 0:00:19]} 50. Be5 {[%clk 0:00:47.6]} 50... Ke6 {[%clk 0:00:19.1]} 51.
Bb8 {[%clk 0:00:47.7]} 51... Rd8+ {[%clk 0:00:14.5]} 52. Kc4 {[%clk 0:00:45.8]}
52... Rc8+ {[%clk 0:00:13.3]} 53. Kb5 {[%clk 0:00:46.2]} 53... Rc1 {[%clk
0:00:11.5]} 54. a8=Q {[%clk 0:00:46.4]} 54... Rb1+ {[%clk 0:00:11.5]} 55. Kc4
{[%clk 0:00:46.8]} 55... Rc1+ {[%clk 0:00:11.3]} 56. Kd3 {[%clk 0:00:47.1]} 1-0

[Event "*** Titled Tuesday Blitz"]
[Site "Chess.com"]
[Date "2021.03.16"]
[Round "2"]
[White "SameerMujumdar"]
[Black "Meri-Arabidze"]
[Result "1-0"]
[WhiteElo "2314"]
[BlackElo "2641"]
[TimeControl "180+1"]
[EndTime "10:17:50 PDT"]
[Termination "SameerMujumdar won by checkmate"]

1. d4 {[%clk 0:02:59.1]} 1... d5 {[%clk 0:03:00]} 2. c4 {[%clk 0:02:58.5]} 2...
e6 {[%clk 0:03:00.4]} 3. Nc3 {[%clk 0:02:58.6]} 3... Nf6 {[%clk 0:03:01.1]} 4.
cxd5 {[%clk 0:02:56.6]} 4... exd5 {[%clk 0:03:02]} 5. Bg5 {[%clk 0:02:55.8]}
5... c6 {[%clk 0:03:02.3]} 6. Nf3 {[%clk 0:02:55.8]} 6... Be7 {[%clk 0:03:01.7]}
7. e3 {[%clk 0:02:56.1]} 7... Nbd7 {[%clk 0:03:01.9]} 8. Bd3 {[%clk 0:02:56.3]}
8... Nf8 {[%clk 0:03:02.5]} 9. Qc2 {[%clk 0:02:55.3]} 9... Ne6 {[%clk
0:03:02.5]} 10. Bh4 {[%clk 0:02:54.6]} 10... g6 {[%clk 0:03:02.8]} 11. Ne5
{[%clk 0:02:50.3]} 11... O-O {[%clk 0:03:02.1]} 12. O-O {[%clk 0:02:49.3]} 12...
Ng7 {[%clk 0:03:01.9]} 13. f4 {[%clk 0:02:39.9]} 13... Bf5 {[%clk 0:02:59.3]}
14. Bxf6 {[%clk 0:02:24.6]} 14... Bxf6 {[%clk 0:02:58.4]} 15. b4 {[%clk
0:02:25.5]} 15... a6 {[%clk 0:02:53.7]} 16. Rab1 {[%clk 0:02:22.5]} 16... Bxd3
{[%clk 0:02:52.3]} 17. Qxd3 {[%clk 0:02:21.9]} 17... Nf5 {[%clk 0:02:52.9]} 18.
a4 {[%clk 0:02:18.4]} 18... Nd6 {[%clk 0:02:52.2]} 19. Rf3 {[%clk 0:02:08.7]}
19... Bg7 {[%clk 0:02:39.8]} 20. Rh3 {[%clk 0:02:01.2]} 20... Qe8 {[%clk
0:02:23.9]} 21. Rf1 {[%clk 0:01:43.2]} 21... f6 {[%clk 0:02:22]} 22. Ng4 {[%clk
0:01:42]} 22... b5 {[%clk 0:02:21.4]} 23. Nh6+ {[%clk 0:01:33.9]} 23... Bxh6
{[%clk 0:02:17.5]} 24. Rxh6 {[%clk 0:01:34.8]} 24... Ra7 {[%clk 0:02:15.3]} 25.
g4 {[%clk 0:01:30.5]} 25... Re7 {[%clk 0:02:14.1]} 26. Rh3 {[%clk 0:01:31.1]}
26... Nc4 {[%clk 0:02:13.6]} 27. Re1 {[%clk 0:01:26.6]} 27... Qc8 {[%clk
0:02:05.2]} 28. f5 {[%clk 0:01:22.6]} 28... g5 {[%clk 0:02:05.2]} 29. e4 {[%clk
0:01:18.4]} 29... Rfe8 {[%clk 0:02:00.5]} 30. e5 {[%clk 0:01:15.1]} 30... fxe5
{[%clk 0:01:54.3]} 31. Rh5 {[%clk 0:01:01.3]} 31... e4 {[%clk 0:01:30]} 32.
Rxg5+ {[%clk 0:01:00]} 32... Kh8 {[%clk 0:01:30.2]} 33. Qh3 {[%clk 0:00:52.5]}
33... Qc7 {[%clk 0:01:28]} 34. f6 {[%clk 0:00:45.7]} 34... Rf7 {[%clk
0:01:24.3]} 35. Rf5 {[%clk 0:00:37.7]} 35... Nd6 {[%clk 0:01:11]} 36. Rf2 {[%clk
0:00:32.4]} 36... Rg8 {[%clk 0:01:09.5]} 37. Kh1 {[%clk 0:00:32]} 37... Qd7
{[%clk 0:01:07.9]} 38. Rg1 {[%clk 0:00:31.7]} 38... Qe6 {[%clk 0:01:03.5]} 39.
Qh4 {[%clk 0:00:31.5]} 39... e3 {[%clk 0:01:01.2]} 40. Re2 {[%clk 0:00:29.9]}
40... Qxf6 {[%clk 0:00:58.3]} 41. Qxf6+ {[%clk 0:00:28.6]} 41... Rxf6 {[%clk
0:00:59.2]} 42. Rxe3 {[%clk 0:00:29.5]} 42... Rgf8 {[%clk 0:00:48.8]} 43. g5
{[%clk 0:00:25.6]} 43... Rf2 {[%clk 0:00:48.4]} 44. Re6 {[%clk 0:00:24.2]} 44...
Nc4 {[%clk 0:00:43.3]} 45. g6 {[%clk 0:00:24]} 45... hxg6 {[%clk 0:00:22.9]} 46.
Rexg6 {[%clk 0:00:24.9]} 46... R8f7 {[%clk 0:00:20.4]} 47. Rxc6 {[%clk
0:00:22.5]} 47... bxa4 {[%clk 0:00:17.1]} 48. Nxd5 {[%clk 0:00:22.2]} 48... Nd2
{[%clk 0:00:16.1]} 49. Rh6+ {[%clk 0:00:17.9]} 49... Rh7 {[%clk 0:00:14.9]} 50.
Nf6 {[%clk 0:00:17.4]} 50... Rxh6 {[%clk 0:00:14.5]} 51. Rg8# {[%clk 0:00:17]}
1-0

[Event "*** Titled Tuesday Blitz"]
[Site "Chess.com"]
[Date "2021.03.16"]
[Round "2"]
[White "Tactickl"]
[Black "Agibileg"]
[Result "1-0"]
[WhiteElo "2791"]
[BlackElo "2519"]
[TimeControl "180+1"]
[EndTime "10:17:51 PDT"]
[Termination "Tactickl won by resignation"]

1. b3 {[%clk 0:03:00.9]} 1... Nc6 {[%clk 0:02:58.3]} 2. Bb2 {[%clk 0:03:01.3]}
2... e5 {[%clk 0:02:58.1]} 3. e3 {[%clk 0:03:01.9]} 3... Nf6 {[%clk 0:02:57]} 4.
Nf3 {[%clk 0:03:02.5]} 4... d6 {[%clk 0:02:57.1]} 5. d4 {[%clk 0:03:02.1]} 5...
Bg4 {[%clk 0:02:41.8]} 6. Be2 {[%clk 0:02:58.5]} 6... Qe7 {[%clk 0:02:24.4]} 7.
c4 {[%clk 0:02:51.2]} 7... O-O-O {[%clk 0:02:16.7]} 8. d5 {[%clk 0:02:48.4]}
8... Nb8 {[%clk 0:02:15.9]} 9. Nc3 {[%clk 0:02:47.9]} 9... Nfd7 {[%clk
0:02:10.5]} 10. b4 {[%clk 0:02:36.3]} 10... f5 {[%clk 0:02:07.9]} 11. Nd2 {[%clk
0:02:36.9]} 11... Bxe2 {[%clk 0:02:07.3]} 12. Nxe2 {[%clk 0:02:34.6]} 12... g5
{[%clk 0:02:05.6]} 13. a4 {[%clk 0:02:23.7]} 13... Bg7 {[%clk 0:02:01.4]} 14. a5
{[%clk 0:02:22.2]} 14... Na6 {[%clk 0:01:55]} 15. Qb3 {[%clk 0:02:16.8]} 15...
f4 {[%clk 0:01:50.4]} 16. e4 {[%clk 0:02:14.7]} 16... g4 {[%clk 0:01:50.5]} 17.
Nc3 {[%clk 0:02:09.9]} 17... h5 {[%clk 0:01:44.8]} 18. Ba3 {[%clk 0:01:56.1]}
18... h4 {[%clk 0:01:41.6]} 19. O-O-O {[%clk 0:01:52.4]} 19... g3 {[%clk
0:01:25.9]} 20. fxg3 {[%clk 0:01:46.9]} 20... hxg3 {[%clk 0:01:23.7]} 21. h3
{[%clk 0:01:45.4]} 21... Kb8 {[%clk 0:01:05.1]} 22. Rhf1 {[%clk 0:01:44.2]}
22... Rc8 {[%clk 0:01:02]} 23. Kb2 {[%clk 0:01:42.9]} 23... Ka8 {[%clk
0:00:34.9]} 24. Ka2 {[%clk 0:01:42.1]} 24... c5 {[%clk 0:00:32.6]} 25. dxc6
{[%clk 0:01:37.3]} 25... bxc6 {[%clk 0:00:33]} 26. Qc2 {[%clk 0:01:30.8]} 26...
Rb8 {[%clk 0:00:30.6]} 27. Rb1 {[%clk 0:01:30.2]} 27... Rhc8 {[%clk 0:00:30.5]}
28. Qd3 {[%clk 0:01:27]} 28... Bf8 {[%clk 0:00:30.1]} 29. Rfd1 {[%clk
0:01:23.3]} 29... Qf7 {[%clk 0:00:24.2]} 30. Ka1 {[%clk 0:01:19.9]} 30... Rb7
{[%clk 0:00:23.9]} 31. Na2 {[%clk 0:01:08.6]} 31... Ndb8 {[%clk 0:00:21]} 32.
Rdc1 {[%clk 0:01:01.1]} 32... Nc7 {[%clk 0:00:21.2]} 33. Nf3 {[%clk 0:00:56.6]}
33... Ne6 {[%clk 0:00:20.9]} 34. Nc3 {[%clk 0:00:52.4]} 34... Nd4 {[%clk
0:00:20.1]} 35. Nxd4 {[%clk 0:00:43.6]} 35... exd4 {[%clk 0:00:21]} 36. Ne2
{[%clk 0:00:44.2]} 36... c5 {[%clk 0:00:20.5]} 37. b5 {[%clk 0:00:41.5]} 37...
Re7 {[%clk 0:00:20.2]} 38. Ng1 {[%clk 0:00:40.8]} 38... Rce8 {[%clk 0:00:20]}
39. Re1 {[%clk 0:00:41.1]} 39... Qh7 {[%clk 0:00:20]} 40. Nf3 {[%clk 0:00:32.1]}
40... Qg6 {[%clk 0:00:19]} 41. Nh4 {[%clk 0:00:27.7]} 41... Qh7 {[%clk
0:00:18.9]} 42. Nf5 {[%clk 0:00:27.4]} 42... Qxf5 {[%clk 0:00:19.3]} 43. exf5
{[%clk 0:00:26.7]} 43... Rxe1 {[%clk 0:00:20.2]} 44. Qf3+ {[%clk 0:00:22.7]}
44... R1e4 {[%clk 0:00:15.3]} 45. Re1 {[%clk 0:00:21.7]} 45... d5 {[%clk
0:00:15.4]} 46. Rxe4 {[%clk 0:00:16.7]} 46... dxe4 {[%clk 0:00:15.1]} 47. Qxf4
{[%clk 0:00:17.3]} 47... e3 {[%clk 0:00:14.3]} 48. Qf3+ {[%clk 0:00:17.2]} 48...
Nc6 {[%clk 0:00:12]} 49. Qxc6+ {[%clk 0:00:16.7]} 49... Kb8 {[%clk 0:00:11.4]}
50. Qxe8+ {[%clk 0:00:16.9]} 50... Kb7 {[%clk 0:00:11.1]} 51. Qxf8 {[%clk
0:00:17.1]} 51... d3 {[%clk 0:00:11.2]} 52. Qe7+ {[%clk 0:00:17]} 52... Kc8
{[%clk 0:00:10]} 53. Qe8+ {[%clk 0:00:16.3]} 1-0

[Event "*** Titled Tuesday Blitz"]
[Site "Chess.com"]
[Date "2021.03.16"]
[Round "2"]
[White "Slovak_fighter2000"]
[Black "Dyadya81"]
[Result "0-1"]
[WhiteElo "2484"]
[BlackElo "2742"]
[TimeControl "180+1"]
[EndTime "10:17:51 PDT"]
[Termination "Dyadya81 won by checkmate"]

1. d4 {[%clk 0:03:00.2]} 1... Nf6 {[%clk 0:02:59.7]} 2. Nf3 {[%clk 0:03:00]}
2... g6 {[%clk 0:03:00.2]} 3. c4 {[%clk 0:02:59.6]} 3... Bg7 {[%clk 0:03:00.6]}
4. Nc3 {[%clk 0:03:00.2]} 4... d6 {[%clk 0:03:00.8]} 5. e4 {[%clk 0:03:00.3]}
5... O-O {[%clk 0:03:01.5]} 6. Be2 {[%clk 0:03:01]} 6... e5 {[%clk 0:03:02.1]}
7. Be3 {[%clk 0:03:01.4]} 7... Ng4 {[%clk 0:03:00.4]} 8. Bg5 {[%clk 0:03:01.3]}
8... f6 {[%clk 0:03:01]} 9. Bh4 {[%clk 0:03:01.6]} 9... g5 {[%clk 0:03:01.6]}
10. Bg3 {[%clk 0:03:01.6]} 10... Nh6 {[%clk 0:03:00.2]} 11. d5 {[%clk
0:03:01.4]} 11... Nd7 {[%clk 0:02:50.1]} 12. Nd2 {[%clk 0:02:58.1]} 12... a5
{[%clk 0:02:47.2]} 13. a3 {[%clk 0:02:56.5]} 13... f5 {[%clk 0:02:41.1]} 14.
exf5 {[%clk 0:02:52.1]} 14... Nxf5 {[%clk 0:02:42]} 15. Nde4 {[%clk 0:02:49.4]}
15... h6 {[%clk 0:02:22.8]} 16. O-O {[%clk 0:02:43.6]} 16... Nd4 {[%clk
0:02:19.9]} 17. Bd3 {[%clk 0:02:34.7]} 17... Nf6 {[%clk 0:01:52.3]} 18. b4
{[%clk 0:02:29.8]} 18... axb4 {[%clk 0:01:43.8]} 19. axb4 {[%clk 0:02:30.7]}
19... Rxa1 {[%clk 0:01:42.9]} 20. Qxa1 {[%clk 0:02:31.6]} 20... Bf5 {[%clk
0:01:41.2]} 21. Qb1 {[%clk 0:02:27.2]} 21... Nxe4 {[%clk 0:01:34.2]} 22. Bxe4
{[%clk 0:02:25]} 22... Qd7 {[%clk 0:01:26.2]} 23. Bxf5 {[%clk 0:02:23.8]} 23...
Nxf5 {[%clk 0:01:22.8]} 24. Ne4 {[%clk 0:02:15.3]} 24... Ra8 {[%clk 0:01:21.3]}
25. b5 {[%clk 0:02:04]} 25... Nd4 {[%clk 0:01:13.7]} 26. f3 {[%clk 0:01:51.5]}
26... Ra4 {[%clk 0:01:06]} 27. Qd3 {[%clk 0:01:51.2]} 27... b6 {[%clk
0:00:50.1]} 28. Bf2 {[%clk 0:01:41.1]} 28... Qf5 {[%clk 0:00:46.8]} 29. Bxd4
{[%clk 0:01:36.2]} 29... exd4 {[%clk 0:00:46]} 30. g3 {[%clk 0:01:33.7]} 30...
Be5 {[%clk 0:00:41.2]} 31. Kg2 {[%clk 0:01:32]} 31... h5 {[%clk 0:00:34.5]} 32.
Rf2 {[%clk 0:01:27]} 32... Kg7 {[%clk 0:00:30.9]} 33. Qc2 {[%clk 0:01:09.8]}
33... Ra3 {[%clk 0:00:28.8]} 34. Qd2 {[%clk 0:01:02.4]} 34... Kg6 {[%clk
0:00:26.3]} 35. h4 {[%clk 0:00:44.4]} 35... g4 {[%clk 0:00:23.1]} 36. Ng5 {[%clk
0:00:40]} 36... Re3 {[%clk 0:00:16.9]} 37. f4 {[%clk 0:00:29.8]} 37... Bf6
{[%clk 0:00:17.1]} 38. Re2 {[%clk 0:00:20.6]} 38... Bxg5 {[%clk 0:00:17.3]} 39.
Rxe3 {[%clk 0:00:18.5]} 39... dxe3 {[%clk 0:00:16.9]} 40. Qxe3 {[%clk
0:00:19.4]} 40... Bf6 {[%clk 0:00:15.6]} 41. Qe8+ {[%clk 0:00:18.5]} 41... Kg7
{[%clk 0:00:16.2]} 42. Qe2 {[%clk 0:00:15.6]} 42... Qd7 {[%clk 0:00:12.4]} 43.
Qe4 {[%clk 0:00:14.6]} 43... Qe7 {[%clk 0:00:11.9]} 44. Qf5 {[%clk 0:00:12.7]}
44... Qe2+ {[%clk 0:00:11]} 45. Kg1 {[%clk 0:00:12.2]} 45... Bd4+ {[%clk
0:00:09]} 46. Kh1 {[%clk 0:00:12.6]} 46... Qf1+ {[%clk 0:00:09.1]} 47. Kh2
{[%clk 0:00:12.6]} 47... Qg1# {[%clk 0:00:09.4]} 0-1

[Event "*** Titled Tuesday Blitz"]
[Site "Chess.com"]
[Date "2021.03.16"]
[Round "2"]
[White "DvaHrasta"]
[Black "Gabrielian_Artur"]
[Result "0-1"]
[WhiteElo "2527"]
[BlackElo "2807"]
[TimeControl "180+1"]
[EndTime "10:17:53 PDT"]
[Termination "Gabrielian_Artur won by checkmate"]

1. c4 {[%clk 0:03:00.9]} 1... Nf6 {[%clk 0:02:59.7]} 2. g3 {[%clk 0:03:00.8]}
2... g6 {[%clk 0:02:59.5]} 3. Bg2 {[%clk 0:03:00.8]} 3... Bg7 {[%clk 0:03:00.1]}
4. Nc3 {[%clk 0:03:00.7]} 4... O-O {[%clk 0:03:00.3]} 5. Nf3 {[%clk 0:03:00.8]}
5... d6 {[%clk 0:03:00.7]} 6. O-O {[%clk 0:03:00.8]} 6... e5 {[%clk 0:03:01]} 7.
d3 {[%clk 0:03:01]} 7... Nc6 {[%clk 0:03:01]} 8. Rb1 {[%clk 0:03:01.3]} 8... a5
{[%clk 0:03:01.3]} 9. a3 {[%clk 0:03:01.7]} 9... Nd4 {[%clk 0:02:58.5]} 10. Ne1
{[%clk 0:03:00.1]} 10... c6 {[%clk 0:02:57.8]} 11. e3 {[%clk 0:03:00.3]} 11...
Ne6 {[%clk 0:02:57.8]} 12. b4 {[%clk 0:02:58.7]} 12... axb4 {[%clk 0:02:58]} 13.
axb4 {[%clk 0:02:58.9]} 13... d5 {[%clk 0:02:55.6]} 14. cxd5 {[%clk 0:02:43.3]}
14... cxd5 {[%clk 0:02:44.9]} 15. e4 {[%clk 0:02:43]} 15... dxe4 {[%clk
0:02:35.6]} 16. dxe4 {[%clk 0:02:40.3]} 16... Qxd1 {[%clk 0:02:35.5]} 17. Nxd1
{[%clk 0:02:40.1]} 17... Nd4 {[%clk 0:02:34.7]} 18. Be3 {[%clk 0:02:28.2]} 18...
Ng4 {[%clk 0:02:31.3]} 19. Bxd4 {[%clk 0:02:22.8]} 19... exd4 {[%clk 0:02:31.1]}
20. Nd3 {[%clk 0:02:16.4]} 20... Ra3 {[%clk 0:02:30.3]} 21. N1b2 {[%clk
0:02:09.9]} 21... b6 {[%clk 0:02:29.6]} 22. h3 {[%clk 0:02:07.7]} 22... Ne5
{[%clk 0:02:25.4]} 23. Nxe5 {[%clk 0:02:05.2]} 23... Bxe5 {[%clk 0:02:24.6]} 24.
Nc4 {[%clk 0:02:04.9]} 24... Rc3 {[%clk 0:01:38.1]} 25. Nxe5 {[%clk 0:02:02.9]}
25... f6 {[%clk 0:01:24.9]} 26. Nf3 {[%clk 0:01:57.2]} 26... d3 {[%clk
0:01:23.7]} 27. Rfc1 {[%clk 0:01:42]} 27... Ra3 {[%clk 0:01:19.9]} 28. Ra1
{[%clk 0:01:30.2]} 28... Rb3 {[%clk 0:01:18.7]} 29. Rab1 {[%clk 0:01:16.8]}
29... Ra3 {[%clk 0:01:18.4]} 30. Rb2 {[%clk 0:00:56.3]} 30... Bd7 {[%clk
0:01:15]} 31. b5 {[%clk 0:00:47.5]} 31... Re8 {[%clk 0:01:07.8]} 32. Rc7 {[%clk
0:00:42.5]} 32... Ra1+ {[%clk 0:01:01]} 33. Kh2 {[%clk 0:00:42]} 33... Rd8
{[%clk 0:00:59.7]} 34. e5 {[%clk 0:00:37.2]} 34... fxe5 {[%clk 0:00:49.8]} 35.
Nxe5 {[%clk 0:00:37.1]} 35... Bf5 {[%clk 0:00:50.2]} 36. Rd2 {[%clk 0:00:35.1]}
36... Re1 {[%clk 0:00:46.3]} 37. Nc6 {[%clk 0:00:24.7]} 37... Rde8 {[%clk
0:00:45.5]} 38. Nd4 {[%clk 0:00:17.1]} 38... R1e2 {[%clk 0:00:34.1]} 39. Nb3
{[%clk 0:00:14.9]} 39... Rxd2 {[%clk 0:00:32.8]} 40. Nxd2 {[%clk 0:00:14.5]}
40... Re2 {[%clk 0:00:33.2]} 41. Nc4 {[%clk 0:00:13.9]} 41... Rxf2 {[%clk
0:00:30.6]} 42. g4 {[%clk 0:00:11.5]} 42... Be4 {[%clk 0:00:29.7]} 43. Kg3
{[%clk 0:00:11.8]} 43... Rxg2+ {[%clk 0:00:30]} 44. Kf4 {[%clk 0:00:11.7]} 44...
Bd5 {[%clk 0:00:28.8]} 45. Ne3 {[%clk 0:00:10.8]} 45... Rf2+ {[%clk 0:00:29.2]}
46. Ke5 {[%clk 0:00:10.7]} 46... Bf7 {[%clk 0:00:29.3]} 47. Rd7 {[%clk
0:00:10.2]} 47... d2 {[%clk 0:00:28.7]} 48. h4 {[%clk 0:00:10]} 48... h6 {[%clk
0:00:27.6]} 49. g5 {[%clk 0:00:09.8]} 49... hxg5 {[%clk 0:00:27.4]} 50. hxg5
{[%clk 0:00:09.7]} 50... Bb3 {[%clk 0:00:25]} 51. Ng4 {[%clk 0:00:07.3]} 51...
Re2+ {[%clk 0:00:24.9]} 52. Kf6 {[%clk 0:00:06.9]} 52... Re6# {[%clk 0:00:24.5]}
0-1

[Event "*** Titled Tuesday Blitz"]
[Site "Chess.com"]
[Date "2021.03.16"]
[Round "2"]
[White "vovachesss"]
[Black "InitiatingASC"]
[Result "1-0"]
[WhiteElo "2741"]
[BlackElo "2441"]
[TimeControl "180+1"]
[EndTime "10:17:55 PDT"]
[Termination "vovachesss won by resignation"]

1. e4 {[%clk 0:03:00.9]} 1... e5 {[%clk 0:02:59.8]} 2. Nf3 {[%clk 0:03:00.5]}
2... Nf6 {[%clk 0:03:00.3]} 3. Nxe5 {[%clk 0:02:57.5]} 3... d6 {[%clk
0:03:00.5]} 4. Nxf7 {[%clk 0:02:58.1]} 4... Kxf7 {[%clk 0:03:01.4]} 5. Bc4+
{[%clk 0:02:58]} 5... Be6 {[%clk 0:02:59.5]} 6. Bxe6+ {[%clk 0:02:57.7]} 6...
Kxe6 {[%clk 0:03:00.4]} 7. Nc3 {[%clk 0:02:57.5]} 7... c6 {[%clk 0:02:54.8]} 8.
d4 {[%clk 0:02:56.9]} 8... Be7 {[%clk 0:02:50.6]} 9. O-O {[%clk 0:02:56]} 9...
Re8 {[%clk 0:02:46.9]} 10. f4 {[%clk 0:02:56]} 10... Kf7 {[%clk 0:02:47.3]} 11.
e5 {[%clk 0:02:54.5]} 11... Nd5 {[%clk 0:02:47.2]} 12. Nxd5 {[%clk 0:02:49.8]}
12... cxd5 {[%clk 0:02:47.1]} 13. f5 {[%clk 0:02:31.8]} 13... dxe5 {[%clk
0:02:35.6]} 14. dxe5 {[%clk 0:02:32.7]} 14... Bc5+ {[%clk 0:02:35.6]} 15. Kh1
{[%clk 0:02:28.8]} 15... Rxe5 {[%clk 0:02:35.5]} 16. Qh5+ {[%clk 0:01:56.3]}
16... Kg8 {[%clk 0:02:33.3]} 17. Bf4 {[%clk 0:01:56.1]} 17... Qe8 {[%clk
0:02:20.4]} 18. Qg4 {[%clk 0:01:54]} 18... Nd7 {[%clk 0:02:06.4]} 19. Bxe5
{[%clk 0:01:42.5]} 19... Qxe5 {[%clk 0:02:03.1]} 20. Rae1 {[%clk 0:01:39.8]}
20... Qd4 {[%clk 0:01:54.5]} 21. Rf4 {[%clk 0:01:20.7]} 21... Qxb2 {[%clk
0:01:41.8]} 22. f6 {[%clk 0:01:11.8]} 22... Nxf6 {[%clk 0:01:38.7]} 23. Qe6+
{[%clk 0:01:12.3]} 23... Kh8 {[%clk 0:01:28.8]} 24. g4 {[%clk 0:01:10.6]} 24...
Qb6 {[%clk 0:01:15.6]} 25. Qf5 {[%clk 0:00:56.9]} 25... Bd6 {[%clk 0:01:00.5]}
26. Rf3 {[%clk 0:00:51.9]} 26... Ne4 {[%clk 0:00:39.3]} 27. Qxd5 {[%clk
0:00:44.2]} 27... Nf2+ {[%clk 0:00:35.4]} 28. Kg2 {[%clk 0:00:44.1]} 28... Nxg4
{[%clk 0:00:35.7]} 29. Re6 {[%clk 0:00:43.5]} 29... Qc6 {[%clk 0:00:18.7]} 30.
Qxc6 {[%clk 0:00:33.7]} 30... bxc6 {[%clk 0:00:18.3]} 31. Rxd6 {[%clk
0:00:34.6]} 31... Rc8 {[%clk 0:00:15.9]} 32. Rxc6 {[%clk 0:00:33.9]} 32... Rd8
{[%clk 0:00:15.2]} 33. Rc7 {[%clk 0:00:31.5]} 33... h5 {[%clk 0:00:14.6]} 34.
Rxa7 {[%clk 0:00:30.4]} 34... Rd2+ {[%clk 0:00:14.7]} 35. Kg3 {[%clk 0:00:30.9]}
35... Rxc2 {[%clk 0:00:14.9]} 36. h3 {[%clk 0:00:28.9]} 36... Ne5 {[%clk
0:00:14.5]} 37. Rf5 {[%clk 0:00:29.4]} 37... Rc3+ {[%clk 0:00:13.4]} 38. Kf4
{[%clk 0:00:21.6]} 38... Ng6+ {[%clk 0:00:10.2]} 39. Kg5 {[%clk 0:00:20.3]}
39... Rg3+ {[%clk 0:00:09.8]} 40. Kxh5 {[%clk 0:00:20.1]} 40... Kh7 {[%clk
0:00:10.3]} 41. Rg5 {[%clk 0:00:17.8]} 41... Nf4+ {[%clk 0:00:10]} 42. Kh4
{[%clk 0:00:17.7]} 42... Rxg5 {[%clk 0:00:04.8]} 43. Kxg5 {[%clk 0:00:18.6]}
43... Nxh3+ {[%clk 0:00:05.3]} 44. Kf5 {[%clk 0:00:19.1]} 44... Nf2 {[%clk
0:00:05.5]} 45. a4 {[%clk 0:00:19.6]} 45... Nd3 {[%clk 0:00:06.4]} 46. a5 {[%clk
0:00:20]} 46... Kh6 {[%clk 0:00:06.6]} 47. a6 {[%clk 0:00:20]} 47... Nc5 {[%clk
0:00:06.2]} 48. Ra8 {[%clk 0:00:19.7]} 48... g6+ {[%clk 0:00:05.2]} 49. Kg4
{[%clk 0:00:19.9]} 49... Ne6 {[%clk 0:00:05.3]} 50. a7 {[%clk 0:00:19.3]} 50...
Nc7 {[%clk 0:00:05.1]} 51. Rc8 {[%clk 0:00:19.9]} 51... Na8 {[%clk 0:00:04.8]}
52. Rxa8 {[%clk 0:00:19.9]} 1-0